Cogmind - Beta 13 X1 @@@ ROGUE MODE // 2023.06.28 @ 00:54:16 Player: Jezoensis Result: Destroyed by D-53 Grenadier with Mini Grenade Launcher Performance ------------- Evolutions (0) 0 Regions Visited (2) 400 Robots Destroyed (16) 80 Value Destroyed (322) 322 Prototype IDs (2) 40 Alien Tech Used (0) 0 Bonus (0) 0 TOTAL SCORE: 842 Bonus ------- None Cogmind --------- Core Integrity 0/250 Matter 186/300 Energy 100/100 System Corruption 0% Temperature Cool (0) Movement Core (50) Location -10/Mines Parts ------- > --- POWER (1) -------- (None) > --- PROPULSION (2) --- (None) > --- UTILITY (2) ------ (None) > --- WEAPON (2) ------- (None) > --- INVENTORY (5) ---- Medium Storage Unit Sensor Array Grenade Launcher Rocket Launcher Mining Laser Peak State ------------ > --- POWER ------------ Ion Engine > --- PROPULSION ------- Wheel Wheel > --- UTILITY ---------- Improved Heat Sink Large Storage Unit > --- WEAPON ----------- Beam Cannon Beam Cannon > --- INVENTORY -------- Ion Engine Light Treads Compact Wheel Medium Storage Unit High-capacity Storage Unit Sensor Array Seismic Detector ECM Suite Assault Rifle Light Assault Rifle Light Assault Rifle Grenade Launcher Mining Laser [Rating: 10] Favorites ----------- Power Ion Engine Engine Ion Engine Propulsion Wheel Treads Light Treads Wheel Wheel Utility Seismic Detector Device Seismic Detector Storage Large Storage Unit Processor Targeting Computer Weapon Beam Cannon Energy Cannon Beam Cannon Ballistic Gun Light Assault Rifle Launcher Grenade Launcher Build | -11 -10 -10 ------- Run | Jun Mat Min Slots Evolved . | . . . Power . | . . . Propulsion . | . . . Utility . | . . . Weapon . | . . . Parts Attached 35 | 8 18 9 Power 2 | 1 1 . Engine 2 | 1 1 . Core . | . . . Reactor . | . . . Propulsion 14 | 3 8 3 Treads 4 | . 3 1 Leg . | . . . Wheel 10 | 3 5 2 Hover . | . . . Flight . | . . . Utility 11 | 2 7 2 Device 6 | 1 3 2 Storage 3 | 1 2 . Processor 2 | . 2 . Hackware . | . . . Protection . | . . . Artifact . | . . . Weapon 8 | 2 2 4 Energy Gun . | . . . Energy Cannon 4 | . 2 2 Ballistic Gun 2 | 2 . . Ballistic Cannon . | . . . Launcher 2 | . . 2 Special Weapon . | . . . Impact Weapon . | . . . Slashing Weapon . | . . . Piercing Weapon . | . . . Special Melee Weapon . | . . . Unidentified Prototypes . | . . . Parts Lost 6 | . . 6 Power 1 | . . 1 Propulsion 4 | . . 4 Utility . | . . . Weapon 1 | . . 1 Highest Loss Streak 6 | . . 6 To Critical Strikes . | . . . Average Slot Usage (%) 99 | . 100 96 Engine 14 | . 14 14 Treads 1 | . 2 . Wheel 25 | . 25 25 Device 10 | . 9 14 Storage 14 | . 14 14 Processor 3 | . 4 . Energy Cannon 11 | . 9 19 Ballistic Gun 14 | . 18 . Launcher 1 | . . 7 Naked Turns 3 | . . 3 Heaviest Build 33 | 14 32 33 Greatest Support 26 | 26 20 20 Greatest Overweight (x) 1 | 1 1 1 Average Overweight (x) . | . . . Largest Inventory Capacity 15 | 8 15 15 Average Capacity 11 | 6 11 14 Most Carried 15 | 5 14 15 Average Carried 10 | 3 10 14 Final Capacity 15 | 8 15 5 Final Carried 13 | 5 13 5 Class Distribution -------------------- 100% | Mutant Dominant Class ---------------- Mutant | -10/Materials Mutant | -10/Mines Resources | -11 -10 -10 ----------- Run | Jun Mat Min Matter Collected 554 | 274 222 58 Remotely . | . . . Salvage Created 487 | 17 470 . Parts 34 | 4 30 . Haulers Intercepted 1 | . 1 . Recyclers Shooed . | . . . Parts Field Recycled . | . . . Retrieved Matter . | . . . Parts Self-Destructed . | . . . Prevented . | . . . Kills | -11 -10 -10 ------- Run | Jun Mat Min Combat Hostiles Destroyed 10 | . 10 . Guns 7 | . 7 . Cannons 3 | . 3 . Classes Destroyed 7 | 1 6 . Builder 2 | . 2 . Tunneler 1 | 1 . . Hauler 1 | . 1 . Recycler 1 | . 1 . Operator 1 | . 1 . Swarmer 3 | . 3 . Grunt 7 | . 7 . Best Kill Streak 6 | 1 6 . Combat Bots Only 5 | . 5 . Max Kills in Single Turn 1 | 1 1 . Gunslinging . | . . . Exploded . | . . . Melee . | . . . Uniques/NPCs Destroyed . | . . . Combat | -11 -10 -10 -------- Run | Jun Mat Min Damage Taken 1042 | . 398 644 Core 258 | . 34 224 Absorbed by Shields . | . . . Core Remaining (%) 100 | 100 . . Volleys Fired 58 | 2 53 3 Largest 2 | 2 2 2 Hottest 120 | 40 120 120 Shots Fired 114 | 4 105 5 Gun 74 | 4 70 . Cannon 40 | . 35 5 Launcher . | . . . Special . | . . . Kinetic 74 | 4 70 . Thermal 40 | . 35 5 Explosive . | . . . Electromagnetic . | . . . Robot Hit Streak 9 | 2 9 1 Robot Miss Streak 6 | 2 6 2 Penetration Max . | . . . Secondary Targets 4 | . 4 . Max Gunslinging Chain 1 | . 1 . Shots Hit Robots 62 | 2 58 2 Core Hits 25 | 1 24 . Critical Kills . | . . . Critical Parts Destroyed . | . . . Critical Strikes . | . . . Melee Attacks . | . . . Impact . | . . . Slashing . | . . . Piercing . | . . . Sneak Attacks . | . . . Combat Hostiles . | . . . Follow-up Attacks . | . . . Damage Inflicted 861 | 18 808 35 Guns 437 | 18 419 . Cannons 424 | . 389 35 Explosions . | . . . Melee . | . . . Ramming . | . . . Kinetic 437 | 18 419 . Thermal 424 | . 389 35 Explosive . | . . . Electromagnetic . | . . . Impact . | . . . Slashing . | . . . Piercing . | . . . Highest Corruption . | . . . Average Corruption . | . . . Corruption Purged . | . . . Corruption Blocked . | . . . Overload Shots . | . . . Overflow Damage 13 | . 13 . Projectiles 13 | . 13 . Explosions . | . . . Melee . | . . . Knockbacks . | . . . Impact . | . . . Kinetic . | . . . Secondary . | . . . Self-Inflicted Damage . | . . . Shots . | . . . Rammed . | . . . Targets Rammed . | . . . Kicked . | . . . Crushed . | . . . Highest Temperature 253 | . 253 36 Average Temperature 83 | . 89 17 Received Heat Transfer 222 | . 210 12 Siege Activations . | . . . Robots Corrupted . | . . . Combat Hostiles . | . . . Parts Fried . | . . . Impact Corruptions . | . . . Robots Melted . | . . . Combat Hostiles . | . . . Parts Melted . | . . . Heat Transferred 888 | . 814 74 Parts Sabotaged . | . . . Parts Stolen . | . . . Parts Stripped . | . . . Power Chain Reactions . | . . . Missiles Intercepted . | . . . Alert | -11 -10 -10 ------- Run | Jun Mat Min Peak Influence 297 | 5 297 55 Initial 55 | . 3 55 Average 96 | 1 118 51 Maximum Alert Level 1 | . 1 . Low Security (%) 87 | 100 82 100 Level 1 12 | . 17 . Level 2 . | . . . Level 3 . | . . . Level 4 . | . . . Level 5 . | . . . High Security . | . . . Max Security . | . . . Squads Dispatched 2 | . 2 . Investigation 2 | . 2 . Extermination . | . . . Reinforcement . | . . . Assault . | . . . Garrison . | . . . Intercept . | . . . Searches Triggered . | . . . Construction Impeded . | . . . Haulers Reinforced . | . . . Active Scanning Responses . | . . . Cargo Convoy Interrupts . | . . . Stealth | -11 -10 -10 --------- Run | Jun Mat Min Distress Signals . | . . . Communications Jammed . | . . . Distress Signals . | . . . Times Spotted 18 | . 16 2 Peak Tracking Total 5 | . 5 2 Tactical Retreats 3 | . 3 . Traps | -11 -10 -10 ------- Run | Jun Mat Min Traps Triggered 1 | . 1 . Indirectly . | . . . Trap Hack Attempts . | . . . Triggered . | . . . Disarmed . | . . . Reprogrammed . | . . . Reused . | . . . Traps Extracted . | . . . Installed 1 | . . 1 Triggered . | . . . Most Traps Carried 2 | . . 2 Machines | -11 -10 -10 ---------- Run | Jun Mat Min Machines Disabled . | . . . Max in Single Turn . | . . . Machines Repaired . | . . . Machines Sabotaged . | . . . Overloaded Fab Kills . | . . . Hacking | -11 -10 -10 --------- Run | Jun Mat Min Machines Accessed 4 | . 4 . Terminals 4 | . 4 . Fabricators . | . . . Repair Stations . | . . . Recycling Units . | . . . Scanalyzers . | . . . Garrison Access . | . . . Total Hacks 13 | . 13 . Successful 3 | . 3 . Failed 9 | . 9 . Catastrophic 1 | . 1 . Database Lockouts 1 | . 1 . Manual 8 | . 8 . Terminals 13 | . 13 . Fabricators . | . . . Repair Stations . | . . . Recycling Units . | . . . Scanalyzers . | . . . Garrison Access . | . . . Terminal Hacks 2 | . 2 . Robot Analysis 1 | . 1 . Prototype ID Bank 1 | . 1 . Fabricator Hacks . | . . . Repair Station Hacks . | . . . Recycling Unit Hacks . | . . . Scanalyzer . | . . . Garrison Access Hacks . | . . . Unauthorized Hacks 1 | . 1 . Terminals 1 | . 1 . Botnet 1 | . 1 . Fabricators . | . . . Repair Stations . | . . . Recycling Units . | . . . Scanalyzers . | . . . Garrison Access . | . . . Data Cores Recovered 1 | . 1 . Used 1 | . 1 . Hacking Detections 4 | . 4 . Full Trace Events 1 | . 1 . Feedback Events . | . . . Feedback Blocked . | . . . Robot Schematics Acquired . | . . . Robots Built . | . . . Authchips . | . . . Time . | . . . Total Robot Build Rating . | . . . Part Schematics Acquired . | . . . Parts Built . | . . . Authchips . | . . . Time . | . . . Total Part Build Rating . | . . . Parts Repaired . | . . . Time . | . . . Parts Recycled . | . . . Recycled Matter . | . . . Retrieved Matter . | . . . Retrieved Components . | . . . Parts Scanalyzed . | . . . Part Schematics Acquired . | . . . Parts Damaged . | . . . Bothacking | -11 -10 -10 ------------ Run | Jun Mat Min Used RIF Installer . | . . . Robots Hacked . | . . . Non-combat . | . . . Combat . | . . . Robot Hacks Applied . | . . . Relay Couplers Released . | . . . Fabnet Peak Effective % . | . . . Robots Rewired . | . . . Allies Hacked . | . . . Hacks Repelled . | . . . Allies | -11 -10 -10 -------- Run | Jun Mat Min Total Allies . | . . . Largest Group . | . . . Highest-Rated Group . | . . . Highest-Rated Ally . | . . . Total Orders . | . . . Ally Attacks . | . . . Total Damage . | . . . Kills . | . . . Allies Corrupted . | . . . Allies Melted . | . . . Intel | -11 -10 -10 ------- Run | Jun Mat Min Robot Analysis Total 1 | . 1 . Derelict Logs Recovered . | . . . Drone Launches . | . . . Drone Recoveries . | . . . Exploration | -11 -10 -10 ------------- Run | Jun Mat Min Turns Passed 643 | 55 474 114 Spaces Moved 448 | 42 314 92 Core 18 | 15 . 3 Treads . | . . . Legs . | . . . Wheels 430 | 27 314 89 Hover . | . . . Flight . | . . . Fastest Speed 50 | 50 80 50 Average Speed 87 | 74 87 93 Slowest Speed 115 | 95 95 115 Overloaded Moves . | . . . Propulsion Burnouts . | . . . Robots Hopped . | . . . Cave-ins Triggered . | . . . Exploration Rate (%) 30 | 4 66 21 Regions Visited 2 Branch Regions 1 Pre-discovered Areas 1 | . . 1 Known Exits Taken . | . . . Unknown Exits Taken 2 | 1 1 . Scrap Searched . | . . . Spaces Dug . | . . . Terrain Destroyed . | . . . Melee . | . . . Projectile . | . . . AOE . | . . . Terrain Rammed . | . . . Walls Destroyed . | . . . Machines Disabled . | . . . Actions | -11 -10 -10 --------- Run | Jun Mat Min Total 580 | 59 409 112 Wait 9 | 1 8 . Move 446 | 41 313 92 Hop . | . . . Pick Up 21 | 6 11 4 Fast Attach 9 | 6 3 . Attach 4 | 2 . 2 Detach 2 | 1 1 . Swap 22 | . 15 7 Drop 8 | . 5 3 Fire 58 | 2 53 3 Melee . | . . . Ram . | . . . Kick . | . . . Crush . | . . . Escape Stasis . | . . . Rewire . | . . . Trap 1 | . . 1 Miscellaneous . | . . . Route ------- -11/Junkyard -10/Materials (discovered 3 exits: [*Mat] / [*Min x2]) -10/Mines History --------- Turn | Location | Event 13 | -11/Junkyard | Discovered new exit (range 15) 56 | -11/Junkyard | Entered Materials 131 | -10/Materials | Discovered new exit (range 16) 320 | -10/Materials | Discovered new exit (range 16) 328 | -10/Materials | Build established: Mutant 479 | -10/Materials | Central database locked down 484 | -10/Materials | Discovered new exit (range 6) 530 | -10/Materials | Entered Mines 531 | -10/Mines | Learned location of Storage (-9) 542 | -10/Mines | Found a hidden stash of uninstalled traps 561 | -10/Mines | Received a Rocket Launcher from a helpful Derelict 590 | -10/Mines | Assembled infested the area 595 | -10/Mines | Assisted by a Guerilla fighting off Assembled 640 | -10/Mines | Core integrity fell below 50% 641 | -10/Mines | Released all parts (3) 643 | -10/Mines | Core integrity fell below 20% 644 | -10/Mines | Destroyed by D-53 Grenadier with Mini Grenade Launcher Last Messages --------------- 00636_ Beam Cannon destroyed. 00636_ Dropped Blade Trap. 00637_ Installed Blade Trap. 00638_ Wheel destroyed. 00638_ Plasma Injector explodes. 00638_ Wheel destroyed. 00640_ The unstable cave ceiling collapses. 00640_ Com. Wheel destroyed. 00640_ Ion Engine destroyed. 00641_ The unstable cave ceiling collapses. 00641_ Released Lrg. Storage Unit. 00641_ Released Imp. Heat Sink. 00641_ Released Beam Cannon. 00641_ Dropped Blade Trap. 00641_ R-06 Scavenger collects Imp. Heat Sink. 00642_ The unstable cave ceiling collapses. 00642_ R-06 Scavenger destroyed. 00642_ Acquired Rocket Launcher. 00643_ The unstable cave ceiling collapses. 00643_ Acquired 58 matter. Map ----- +----------------------------------------------------+ | | | | | | | | | | | | | ?????????????????????????????????????????????????? | | ?????????????????????????????????????????????????? | | ?????????????????????????????????????????????????? | | ????????####?????????????????????????????????????? | | ???????## #????????????????????????????????????? | | ???????# ##?####?????????????????????????????? | | ???????# ### ##????????????????????????????? | | ????????# #??????###???????????????????? | | ?????????# #?####? #???????????????????? | | ????????## #### ##+ #???????????????????? | | ???????## ### ### #???????????????????? | | ???????# ##?# ## & #????????????????????? | | ???????# ##??# ## #?????????????????????? | | ???????## ##???# #?????????????????????? | | ????????####?????# ##### u##?????????????????????? | | ?????????????????# #???## #??????????????????????? | | ?????????????????# ###??# #??????????????????????? | | ?????????????????# ## ###u######## #?????????????? | | ???????????????### # t r #????????????? | | ??????????????## @ ####### #????????????? | | ??????????????# #????????????????????? | | ??????????????# % #????????????????????? | | ??????????##### [! ##???????????????????? | | ????????# *! dd ##??????????????????? | | ?????????####### #??????????????????? | | ???????????????#; ##??????????????????? | | ???????????????##;; # # #??????????????????? | | ????????????????### # #??????????????????? | | ??????????????????# ##??????????????????? | | ??????????????????# # ##???????????????????? | | ????????????????? ##???????????????????? | | ???????????????# ###### ##??????????????????? | | ???????????????#??????# #??????????????????? | | ??????????????????????# #??????????????????? | | ??????????????????????## #??????????????????? | | ????????????????###????## ##?????????????????? | | ???????????????## ##???# ####??????????????? | | ??????????????## ##?## ##?????????????? | | ??????????????# ### #?????????????? | | ??????????????# #?????????????? | | ??????????????## ###### ##?????????????? | | ???????????????# ##????## #??????????????? | | ???????????????# ##??????#####??????????????? | | ???????????????## ##??????????????????????????? | +----------------------------------------------------+ Best States ------------- Heat Dissipation 39 Energy Generation 10 Energy Capacity 250 Matter Stores 297 Matter Capacity 300 Sight Range 16 Robot Scan Range 14 Terrain Scan Density 10 Evasion (%) 50 Targeting Accuracy 5 Recoil Reduction 1 Item Schematics ----------------- None Robot Schematics ------------------ None Fabricated ------------ Nothing Alien Tech Used ----------------- None Achievements -------------- None Challenges ------------ None Game ------ Seed BackupImprovedRegenerator Manual? 0 Play Time 00:10:59 Cumulative 949.7 hours Start 2023.06.28 @ 00:45:18 End 2023.06.28 @ 00:54:16 Sessions 1 Manual Loads 0 Difficulty Rogue Special Mode None Game No. 494 Rogue 367 Adventurer 125 Explorer 2 Win Type - Total 112 Types 88/9/7/2/3/0/0/2/1 Lore% 82 Gallery% 89 Achievement% 82 Wizard Run 0 Options --------- ASCII 0 Keyboard 1 Movement Numpad Keybinds 0 Fullscreen 1 Font 36/TerminusFine Map View 76x50 Tactical HUD 1 Map Filters NONE Filters NONE Steam 1 RUN: 3756fc3f-db6e-4840-b5c0-e4cf9db5f5d2